bitfinex-derivatives/quotes_SOLF0:USTF0_20250731
["timestamp","ask_amount","ask_price","bid_price","bid_amount"]
[1753994288348,3.04,174.94,174.92,3.29]
[1753994288547,3.04,174.97,174.89,3.29]
[1753994289248,3.04,174.97,174.9,6.71685214]
[1753994289553,5.7166,174.96,174.93,3.29]
[1753994290053,5.716,174.98,174.93,3.29]
[1753994290242,3.04,174.99,174.93,3.29]
[1753994290746,3.04,174.97,174.91,3.29]
[1753994291141,8.7571,174.95,174.92,3.29]
[1753994291349,3.04,174.95,174.93,3.29]
[1753994292150,5.7172,174.94,174.93,3.29]
[1753994293349,6.71685214,174.98,174.91,3.29]
[1753994293350,3.04,174.93,174.91,3.29]
[1753994293650,3.04,174.93,174.92,3.29]
[1753994293849,3.04,174.93,174.88,5.7191]
[1753994294050,3.04,174.92,174.9,3.29]
[1753994294451,8.7581,174.92,174.9,3.29]
[1753994294654,8.7581,174.92,174.88,5.7191]
[1753994294853,8.7581,174.92,174.91,3.29]
[1753994295257,6.71685214,174.94,174.86,5.7196]
[1753994295452,3.04,174.93,174.87,3.29]
[1753994295648,6.71685214,174.92,174.87,3.29]
[1753994295853,8.759,174.89,174.87,3.29]
[1753994296048,8.759,174.89,174.88,3.29]
[1753994296250,3.04,174.91,174.89,3.29]
[1753994296656,5.7187,174.9,174.89,3.29]
[1753994296855,8.7587,174.9,174.89,3.29]
[1753994297659,3.04,174.9,174.87,3.29]
[1753994297861,3.04,174.88,174.86,3.29]
[1753994298061,3.04,174.87,174.86,3.29]
[1753994298257,8.7596,174.87,174.86,3.29]
[1753994298561,3.04,174.86,174.84,3.29]
[1753994298759,5.7203,174.85,174.78,4.7746097]
[1753994298956,3.04,174.87,174.8,9.0117]
[1753994299455,3.04,174.87,174.81,3.29]
[1753994300054,3.04,174.84,174.79,5.722]
[1753994300259,3.04,174.84,174.81,3.29]
[1753994300453,5.7211,174.83,174.82,3.29]
[1753994300657,8.7611,174.83,174.82,3.29]
[1753994301560,109.56,174.92,174.82,3.29]
[1753994301561,3.04,174.92,174.82,3.29]
[1753994301865,3.04,174.9,174.82,3.29]
[1753994302055,3.04,174.9,174.82,9.0109]
[1753994302259,3.04,174.9,174.83,3.29]
[1753994303459,3.04,174.93,174.87,3.29]
[1753994303657,3.04,174.95,174.89,3.29]
[1753994303863,5.718,174.92,174.86,6.71685214]
[1753994304064,5.718,174.92,174.87,3.29]
[1753994304260,5.718,174.92,174.89,5.7186]
[1753994304461,5.7177,174.93,174.87,3.29]
[1753994304955,5.7179,174.92,174.87,3.29]
[1753994305856,5.7179,174.92,174.89,5.7187]
[1753994306261,5.7179,174.92,174.91,3.29]
[1753994306858,3.04,174.9,174.89,3.29]
[1753994307062,3.04,174.89,174.85,3.29]
[1753994307261,3.04,174.89,174.86,5.7196]
[1753994307462,3.04,174.92,174.84,6.71685214]
[1753994307662,3.04,174.92,174.85,3.29]
[1753994307861,5.7189,174.89,174.86,5.7196]
[1753994308061,3.04,174.89,174.87,3.29]
[1753994308656,5.7192,174.88,174.87,3.29]
[1753994308862,3.2,174.92,174.79,4.7746097]
[1753994308863,3.2,174.9,174.85,3.06]
[1753994309064,3.2,174.89,174.87,3.06]
[1753994309461,5.7194,174.88,174.87,3.06]
[1753994309663,3.2,174.88,174.81,3.06]
[1753994310262,3.2,174.88,174.84,3.06]
[1753994310464,3.2,174.9,174.81,3.06]
[1753994311069,5.7197,174.87,174.85,3.06]
[1753994311269,3.2,174.87,174.81,3.06]
[1753994311770,3.2,174.84,174.82,3.06]
[1753994311967,6.71685214,174.87,174.78,3.06]
[1753994312168,8.9203,174.85,174.83,3.06]
[1753994312372,8.9203,174.85,174.77,6.71685214]
[1753994312673,3.2,174.85,174.77,3.06]
[1753994312866,9.91685214,174.85,174.77,3.06]
[1753994313366,3.2,174.83,174.8,3.06]
[1753994313572,3.2,174.83,174.81,3.06]
[1753994313763,3.2,174.84,174.78,3.06]
[1753994313959,5.722,174.8,174.79,3.06]
[1753994314160,3.2,174.81,174.79,3.06]
[1753994314363,8.9217,174.81,174.79,3.06]
[1753994314565,3.2,174.81,174.79,3.06]
[1753994314864,3.2,174.8,174.79,3.06]
[1753994315059,6.71685214,174.82,174.72,11.49146184]
[1753994315269,3.2,174.79,174.77,3.06]
[1753994315865,5.7225,174.78,174.77,3.06]
[1753994316260,8.9225,174.78,174.77,3.06]
[1753994316663,6.71685214,174.78,174.71,3.06]
[1753994316873,3.2,174.77,174.71,3.06]
[1753994318071,8.923,174.77,174.71,3.06]
[1753994318275,3.2,174.77,174.71,3.06]
[1753994318673,5.7231,174.76,174.73,5.7238]
[1753994318975,6.71685214,174.82,174.72,6.71685214]
[1753994319171,5.7223,174.79,174.73,3.06]
[1753994319470,3.2,174.84,174.75,3.06]
[1753994319667,3.2,174.82,174.75,3.06]
[1753994319867,8.9218,174.8,174.77,3.06]
[1753994320070,8.9218,174.8,174.79,3.06]
[1753994320468,8.9222,174.79,174.74,6.71685214]
[1753994320664,3.2,174.78,174.74,6.71685214]
[1753994320871,3.2,174.78,174.76,3.06]
[1753994321072,6.71685214,174.83,174.75,3.06]
[1753994321269,3.2,174.82,174.75,3.06]
[1753994322276,3.2,174.8,174.72,3.06]
[1753994322671,5.7226,174.78,174.72,3.06]
[1753994322973,3.2,174.78,174.72,3.06]
[1753994323173,5.7235,174.75,174.72,8.7844]
[1753994323373,3.2,174.8,174.72,3.06]
[1753994323675,3.2,174.78,174.72,3.06]
[1753994324476,3.2,174.78,174.74,5.7236]
[1753994324677,6.71685214,174.81,174.76,3.06]
[1753994324880,3.2,174.77,174.76,3.06]
[1753994325471,6.71685214,174.81,174.73,5.724]
[1753994325671,6.71685214,174.77,174.72,3.06]
[1753994325973,5.7243,174.73,174.7,3.06]
[1753994326178,3.2,174.72,174.7,3.06]
[1753994326669,8.9245,174.72,174.7,3.06]
[1753994328078,3.2,174.71,174.7,3.06]
[1753994329975,6.71685214,174.75,174.7,3.06]
[1753994330276,3.2,174.72,174.7,3.06]
[1753994330668,3.2,174.71,174.68,5.7256]
[1753994330868,3.2,174.71,174.69,3.06]
[1753994331068,3.2,174.71,174.7,3.06]
[1753994331268,8.9248,174.71,174.7,3.06]
[1753994331777,6.71685214,174.8,174.66,3.06]
[1753994331778,5.7253,174.7,174.66,3.06]
[1753994331979,3.2,174.72,174.66,3.06]
[1753994332579,6.71685214,174.72,174.64,3.06]
[1753994332776,3.2,174.71,174.64,3.06]
[1753994333074,6.71685214,174.7,174.63,127.47579503]
[1753994333281,6.71685214,174.7,174.65,3.06]
[1753994333480,6.71685214,174.77,174.67,6.71685214]
[1753994333684,3.2,174.81,174.73,6.71685214]
[1753994333875,3.2,174.81,174.74,3.06]
[1753994334074,6.71685214,174.79,174.74,3.06]
[1753994334269,8.9235,174.75,174.74,3.06]
[1753994334470,3.2,174.78,174.69,3.06]
[1753994334671,3.2,174.78,174.69,8.7853]
[1753994334672,5.724,174.74,174.69,8.7853]
[1753994334877,109.3,174.83,174.69,3.06]
[1753994334878,3.2,174.76,174.69,3.06]
[1753994335075,6.71685214,174.75,174.61,4.7746097]
[1753994335379,6.71685214,174.64,174.6,3.06]
[1753994335581,3.2,174.63,174.6,3.06]
[1753994335782,3.2,174.62,174.6,3.06]
[1753994336077,3.2,174.61,174.57,3.06]
[1753994336277,6.71685214,174.6,174.5,6.71685214]
[1753994336480,6.71685214,174.6,174.54,3.06]
[1753994336683,3.2,174.59,174.53,3.06]
[1753994337073,3.2,174.59,174.44,5.77175866]
[1753994337277,3.2,174.55,174.45,9.77685214]
[1753994337478,3.2,174.55,174.5,3.06]
[1753994337682,3.2,174.54,174.51,3.06]
[1753994337884,5.731,174.52,174.51,3.06]
[1753994338381,8.8107,174.53,174.48,5.7323]
[1753994338577,5.7307,174.53,174.51,3.29]
[1753994339574,8.8107,174.53,174.51,3.29]
[1753994339881,3.08,174.53,174.51,3.29]
[1753994340379,6.71685214,174.56,174.52,3.29]
[1753994340684,3.08,174.58,174.5,3.29]
[1753994340984,5.7303,174.55,174.5,5.7316]
[1753994341184,8.8103,174.55,174.53,3.29]
[1753994341383,109.74,174.62,174.52,3.29]
[1753994341384,3.08,174.61,174.52,3.29]
[1753994341582,3.08,174.61,174.54,3.29]
[1753994341881,3.08,174.58,174.5,3.29]
[1753994342081,5.73,174.55,174.5,3.29]
[1753994342283,3.08,174.55,174.5,3.29]
[1753994342481,3.08,174.55,174.51,3.29]
[1753994342682,6.71685214,174.59,174.49,6.71685214]
[1753994342878,5.7302,174.55,174.52,3.29]
[1753994343084,3.08,174.54,174.52,3.29]
[1753994343481,3.08,174.52,174.5,3.29]
[1753994344178,8.8106,174.54,174.48,3.29]
[1753994344980,3.08,174.52,174.5,3.29]
[1753994345189,6.71685214,174.57,174.47,6.71685214]
[1753994345190,3.08,174.56,174.51,3.29]
[1753994345387,8.8103,174.55,174.52,3.29]
[1753994345577,3.08,174.54,174.52,3.29]
[1753994346182,6.71685214,174.57,174.52,3.29]
[1753994346383,3.08,174.53,174.52,3.29]
[1753994347179,3.08,174.52,174.5,3.29]
[1753994347383,3.08,174.51,174.5,3.29]
[1753994347783,6.71685214,174.6,174.5,3.29]
[1753994348083,3.08,174.59,174.52,3.29]
[1753994348778,5.7293,174.58,174.54,5.7303]
[1753994348979,3.08,174.6,174.54,3.29]
[1753994349384,5.7296,174.57,174.54,3.29]
[1753994349684,8.8096,174.57,174.55,3.29]
[1753994349886,5.7297,174.56,174.55,3.29]
[1753994352595,8.8095,174.57,174.55,3.29]
[1753994352785,5.7295,174.57,174.54,3.29]
[1753994353487,5.7297,174.56,174.55,3.29]
[1753994355391,109.58,174.62,174.55,3.29]
[1753994355392,3.08,174.61,174.55,3.29]
[1753994355997,5.7294,174.57,174.56,3.29]
[1753994357296,8.8094,174.57,174.56,3.29]
[1753994357487,3.08,174.59,174.51,10.00685214]
[1753994357688,3.08,174.59,174.52,3.29]
[1753994358093,112.32,174.59,174.53,6.71685214]
[1753994358290,6.71685214,174.62,174.54,3.29]
[1753994358491,384.66,174.63,174.59,6.71685214]
[1753994358492,387.74,174.63,174.59,6.71685214]
[1753994358797,11.4497,174.71,174.5,6.71685214]
[1753994358798,3.08,174.64,174.61,10.00685214]
[1753994358996,3.08,174.64,174.62,3.29]
[1753994359497,8.8074,174.63,174.62,3.29]
[1753994359800,3.08,174.63,174.62,3.29]
[1753994360104,8.8069,174.65,174.63,3.29]
[1753994360302,8.8069,174.65,174.64,3.29]
[1753994360696,3.08,174.67,174.65,3.29]
[1753994360893,3.08,174.67,174.63,6.71685214]
[1753994361094,3.08,174.73,174.64,3.29]
[1753994361299,5.7261,174.67,174.64,3.29]
[1753994361902,8.8061,174.67,174.65,3.29]
[1753994362100,5.7264,174.66,174.65,3.29]
[1753994362501,8.8064,174.66,174.65,3.29]
[1753994362703,5.7264,174.66,174.65,3.29]
[1753994362901,8.8064,174.66,174.65,3.29]
[1753994363103,5.7268,174.65,174.63,6.71685214]
[1753994363300,5.7268,174.65,174.64,3.29]
[1753994364001,3.08,174.62,174.61,3.29]
[1753994364200,6.71685214,174.68,174.61,3.29]
[1753994364201,3.08,174.67,174.61,3.29]
[1753994364401,112.16,174.67,174.61,3.29]
[1753994364696,109.12,174.68,174.61,3.29]
[1753994364896,3.08,174.67,174.61,3.29]
[1753994365500,5.7272,174.64,174.6,6.71685214]
[1753994365707,8.8072,174.64,174.62,3.29]
[1753994365901,3.08,174.64,174.63,3.29]
[1753994367203,3.08,174.65,174.58,3.29]
[1753994367505,3.08,174.65,174.58,6.71685214]
[1753994367709,8.8068,174.65,174.59,9.0186]
[1753994368006,8.8068,174.65,174.6,3.29]
[1753994368207,3.24,174.67,174.61,3.01]
[1753994369107,3.24,174.65,174.56,6.71685214]
[1753994369300,6.71685214,174.64,174.59,3.01]
[1753994369502,3.24,174.63,174.59,3.01]
[1753994369703,3.24,174.63,174.56,6.71685214]
[1753994369907,109.04,174.66,174.51,44.0]
[1753994369908,3.24,174.65,174.58,6.71685214]
[1753994370210,3.24,174.63,174.55,3.01]
[1753994370910,8.968,174.62,174.56,3.01]
[1753994371411,11.4487,174.73,174.59,3.01]
[1753994371412,3.24,174.65,174.59,3.01]
[1753994371807,3.24,174.67,174.61,12.44465214]
[1753994372005,3.24,174.67,174.62,3.01]
[1753994372200,109.02,174.7,174.62,3.01]
[1753994372609,3.24,174.69,174.64,3.01]
[1753994372809,3.24,174.68,174.64,3.01]
[1753994373406,3.24,174.67,174.65,3.01]
[1753994373714,3.24,174.68,174.62,3.01]
[1753994373913,5.7269,174.65,174.62,3.01]
[1753994374114,3.24,174.63,174.62,3.01]
[1753994375513,5.7271,174.64,174.62,3.01]
[1753994375716,3.24,174.63,174.62,3.01]
[1753994376515,6.71685214,174.67,174.57,6.71685214]
[1753994376716,3.24,174.65,174.63,3.01]
[1753994376904,3.24,174.71,174.61,6.71685214]
[1753994377107,3.24,174.72,174.64,3.01]
[1753994377711,8.9653,174.7,174.64,8.737]
[1753994378018,3.24,174.7,174.65,9.72685214]
[1753994378211,3.24,174.7,174.66,3.01]
[1753994378718,8.9653,174.7,174.66,3.01]
[1753994379119,3.24,174.69,174.6,6.71685214]
[1753994379319,3.24,174.68,174.61,3.01]
[1753994379820,3.24,174.66,174.61,3.01]
[1753994380415,3.24,174.64,174.58,3.01]
[1753994381817,115.59685214,174.67,174.59,3.01]
[1753994382014,3.24,174.66,174.59,3.01]
[1753994382519,6.71685214,174.67,174.59,3.01]
[1753994382520,3.24,174.64,174.6,3.01]
[1753994384218,5.7271,174.64,174.58,5.7289]
[1753994384425,3.24,174.62,174.6,3.01]
[1753994384921,3.24,174.62,174.59,3.01]
[1753994385124,8.9671,174.64,174.62,3.01]
[1753994385314,3.24,174.64,174.62,3.01]
[1753994385517,6.71685214,174.67,174.6,3.01]
[1753994385720,3.24,174.63,174.61,3.01]
[1753994386321,3.24,174.65,174.62,3.01]
[1753994386515,9.95685214,174.67,174.61,3.01]
[1753994386722,8.9665,174.66,174.61,8.7378]
[1753994387029,8.9665,174.66,174.62,3.01]
[1753994387824,3.24,174.68,174.63,9.72685214]
[1753994388029,3.24,174.68,174.64,3.01]
[1753994388227,108.86,174.73,174.64,3.01]
[1753994388527,108.86,174.73,174.65,3.01]
[1753994388829,3.24,174.69,174.64,3.01]
[1753994389024,3.24,174.68,174.64,3.01]
[1753994389629,3.24,174.75,174.68,3.01]
[1753994389832,3.24,174.75,174.68,9.72685214]
[1753994390027,3.24,174.75,174.69,3.01]
[1753994390229,3.24,174.73,174.7,3.01]
[1753994390527,385.06,174.76,174.68,6.71685214]
[1753994390724,3.24,174.75,174.71,3.01]
[1753994391129,3.24,174.75,174.72,3.01]
[1753994391423,3.24,174.75,174.73,3.01]
[1753994391823,3.24,174.75,174.71,3.01]
[1753994392023,3.24,174.74,174.69,3.01]
[1753994392523,3.24,174.74,174.69,5.7252]
[1753994392722,3.24,174.74,174.67,3.01]
[1753994392921,3.24,174.73,174.67,3.01]
[1753994393328,5.7247,174.72,174.67,3.01]
[1753994393530,3.24,174.71,174.68,3.01]
[1753994393723,3.24,174.7,174.66,3.01]
[1753994393926,3.24,174.68,174.63,5.7274]
[1753994394123,3.24,174.67,174.64,3.01]
[1753994394322,3.24,174.69,174.64,3.01]
[1753994394521,3.24,174.69,174.64,8.7368]
[1753994394736,3.24,174.69,174.65,3.01]
[1753994394928,3.24,174.71,174.66,6.71685214]
[1753994395227,3.24,174.75,174.69,3.01]
[1753994395432,3.24,174.75,174.7,6.71685214]
[1753994395627,3.24,174.74,174.71,3.01]
[1753994395828,3.24,174.74,174.7,6.71685214]
[1753994395829,3.24,174.74,174.72,3.01]
[1753994396229,8.9638,174.74,174.72,3.01]
[1753994396526,3.24,174.74,174.72,3.01]
[1753994397737,3.24,174.74,174.73,3.01]
[1753994397925,5.7237,174.75,174.73,3.01]
[1753994398125,108.84,174.79,174.72,9.72685214]
[1753994398330,108.84,174.8,174.72,9.72685214]
[1753994398633,3.25,174.79,174.73,3.19]
[1753994399237,3.25,174.79,174.7,6.71685214]
[1753994399238,3.25,174.78,174.7,3.19]
[1753994399430,3.25,174.78,174.71,3.19]
[1753994399630,3.25,174.78,174.73,3.19]
[1753994399832,8.9728,174.78,174.73,5.7239]
[1753994400031,3.25,174.77,174.75,3.19]
[1753994400530,4.69020005,174.85,174.75,3.19]
[1753994400734,1649.74,175.0,174.67,4.74510582]
[1753994400735,3.25,174.84,174.78,6.71685214]
[1753994400931,5.7211,174.83,174.79,3.19]
[1753994401131,3.25,174.85,174.8,3.19]
[1753994401531,8.9715,174.81,174.8,3.19]
[1753994401837,8.9715,174.81,174.79,3.19]
[1753994402136,3.25,174.81,174.79,3.19]
[1753994403038,3.25,174.81,174.8,3.19]
[1753994403229,3.25,174.81,174.78,3.19]
[1753994403430,8.9715,174.81,174.79,3.19]
[1753994403630,3.25,174.85,174.78,5.7225]
[1753994403835,3.25,174.85,174.79,3.19]
[1753994404142,5.7206,174.84,174.79,3.19]
[1753994404334,3.25,174.83,174.79,3.19]
[1753994404530,3.25,174.82,174.8,3.19]
[1753994404730,3.25,174.82,174.81,3.19]
[1753994405337,8.9712,174.82,174.79,3.19]
[1753994405539,8.9712,174.82,174.8,3.19]
[1753994406141,8.9715,174.81,174.8,3.19]
[1753994406342,6.71685214,174.85,174.77,3.19]
[1753994406541,6.71685214,174.85,174.76,3.19]
[1753994406542,3.25,174.84,174.76,3.19]
[1753994406746,5.722,174.8,174.75,5.7233]
[1753994406938,3.25,174.84,174.75,3.19]
[1753994407247,5.7214,174.82,174.77,8.9126]
[1753994407543,3.25,174.81,174.78,3.19]
[1753994407746,3.25,174.81,174.79,3.19]
[1753994408041,8.9716,174.81,174.79,3.19]
[1753994408241,3.25,174.8,174.79,3.19]
[1753994408837,3.25,174.82,174.8,3.19]
[1753994409041,3.25,174.85,174.8,3.19]
[1753994409246,5.7209,174.83,174.81,3.19]
[1753994409551,3.25,174.82,174.81,3.19]
[1753994409948,3.25,174.88,174.81,3.19]
[1753994410248,3.25,174.87,174.81,3.19]
[1753994410446,3.25,174.92,174.81,3.19]
[1753994410651,3.25,174.92,174.8,6.71685214]
[1753994410652,3.25,174.92,174.86,3.19]
[1753994410944,3.25,174.9,174.86,5.7196]
[1753994411143,3.25,174.89,174.85,3.19]
[1753994411347,3.25,174.89,174.83,3.19]
[1753994411548,3.25,174.86,174.83,3.19]
[1753994411749,3.25,174.86,174.84,3.19]
[1753994412848,114.4796,174.87,174.84,3.19]
[1753994413149,3.25,174.85,174.84,3.19]
[1753994413550,3.25,174.85,174.73,4.74510582]
[1753994413849,3.25,174.85,174.77,3.19]
[1753994414350,3.25,174.85,174.8,3.19]
[1753994414541,3.25,174.82,174.8,3.19]
[1753994414748,3.25,174.85,174.77,3.19]
[1753994415052,3.25,174.85,174.81,3.19]
[1753994415752,108.74,174.86,174.78,6.71685214]
[1753994416052,3.25,174.85,174.79,3.19]
[1753994416253,5.7204,174.85,174.8,5.7218]
[1753994416447,3.25,174.84,174.81,3.19]
[1753994416750,3.25,174.83,174.81,3.19]
[1753994417251,3.25,174.83,174.82,3.19]
[1753994418949,3.25,174.85,174.79,3.19]
[1753994419354,8.9704,174.85,174.81,5.7214]
[1753994419654,115.45685214,174.86,174.81,3.19]
[1753994419655,3.25,174.82,174.81,3.19]
[1753994419853,3.25,174.82,174.79,5.7221]
[1753994420055,3.25,174.81,174.77,3.19]
[1753994420551,6.71685214,174.84,174.75,3.19]
[1753994420747,3.25,174.83,174.75,3.19]
[1753994421148,5.7217,174.81,174.76,5.7231]
[1753994421343,6.71685214,174.84,174.77,3.19]
[1753994421549,3.25,174.83,174.77,3.19]
[1753994421748,5.7213,174.82,174.77,5.7227]
[1753994422153,3.25,174.8,174.78,3.19]
[1753994422958,3.25,174.79,174.78,3.19]
[1753994423359,3.25,174.79,174.74,6.71685214]
[1753994423360,3.25,174.78,174.76,8.913]
[1753994423560,3.25,174.78,174.74,6.71685214]
[1753994423755,3.25,174.82,174.77,3.19]
[1753994423955,3.25,174.82,174.74,6.71685214]
[1753994423956,3.25,174.82,174.75,3.19]
[1753994424154,108.72,174.82,174.77,3.19]
[1753994424357,108.72,174.82,174.79,5.7219]
[1753994424557,111.97,174.82,174.8,3.19]
[1753994424957,111.97,174.82,174.81,3.19]
[1753994425262,111.97,174.84,174.79,3.19]
[1753994425462,3.25,174.83,174.79,3.19]
[1753994425659,3.25,174.83,174.81,3.19]
[1753994426863,3.25,174.83,174.82,3.19]
[1753994427165,108.72,174.85,174.78,6.71685214]
[1753994427366,3.25,174.84,174.83,3.19]
[1753994427967,108.72,174.85,174.8,6.71685214]
[1753994428167,3.25,174.84,174.8,6.71685214]
[1753994428365,3.25,174.84,174.82,5.721]
[1753994428564,3.25,174.84,174.81,3.16]
[1753994428565,112.04,174.86,174.81,3.16]
[1753994428765,3.32,174.85,174.81,3.16]
[1753994428967,3.32,174.85,174.83,3.16]
[1753994429171,3.32,174.85,174.84,3.16]
[1753994429563,3.32,174.85,174.81,8.8814]
[1753994429763,3.32,174.85,174.78,6.71685214]
[1753994429764,3.32,174.85,174.79,3.16]
[1753994429964,3.32,174.85,174.77,3.16]
[1753994430165,3.32,174.83,174.8,3.16]
[1753994430361,3.32,174.85,174.78,3.16]
[1753994430570,3.32,174.85,174.79,5.7222]
[1753994431270,3.32,174.82,174.77,3.16]
[1753994431772,3.32,174.82,174.81,3.16]
[1753994432972,3.32,174.87,174.79,3.16]
[1753994433165,112.02,174.87,174.81,3.16]
[1753994433570,112.02,174.87,174.85,3.16]
[1753994433973,3.32,174.87,174.83,3.16]
[1753994434172,114.419,174.89,174.83,3.16]
[1753994434371,3.32,174.9,174.84,6.71685214]
[1753994434569,3.32,174.94,174.89,3.16]
[1753994434870,3.32,174.91,174.89,3.16]
[1753994435269,3.32,174.91,174.9,3.16]
[1753994436070,9.0383,174.91,174.9,3.16]
[1753994436571,3.32,174.92,174.87,3.16]
[1753994436772,108.7,174.93,174.86,6.71685214]
[1753994436773,9.0388,174.9,174.88,3.16]
[1753994436969,3.32,174.87,174.85,3.16]
[1753994437362,3.32,174.86,174.83,3.16]
[1753994437565,3.32,174.86,174.8,6.71685214]
[1753994437765,3.32,174.86,174.85,3.16]
[1753994438369,9.0399,174.86,174.85,3.16]
[1753994440473,4.72798648,175.0,174.86,3.16]
[1753994440673,3.32,174.98,174.93,3.16]
[1753994440870,108.66,174.97,174.95,3.16]
[1753994441380,108.66,174.97,174.96,3.16]
[1753994441579,117.6964,174.97,174.96,3.16]
[1753994443375,111.98,174.97,174.96,3.16]
[1753994443576,3.32,175.02,174.96,3.16]
[1753994443777,108.66,175.01,174.95,5.7169]
[1753994443982,5.7157,174.99,174.97,3.16]
[1753994444185,108.64,174.98,174.97,3.16]
[1753994444485,111.96,174.98,174.97,3.16]
[1753994444985,9.0354,175.0,174.97,3.16]
[1753994445281,111.96,174.99,174.97,3.16]
[1753994445482,111.96,174.98,174.97,3.16]
[1753994446087,108.64,174.98,174.97,3.16]
[1753994446487,3.32,175.0,174.98,3.16]
[1753994446679,108.64,174.99,174.98,3.16]
[1753994446876,3.32,174.97,174.95,3.16]
[1753994447087,3.32,174.98,174.93,3.16]
[1753994447281,3.32,174.98,174.94,3.16]
[1753994447481,3.32,174.98,174.92,6.71685214]
[1753994447681,3.32,174.97,174.96,3.16]
[1753994449479,108.62,174.97,174.96,3.16]
[1753994449679,3.32,175.04,174.96,3.16]
[1753994449876,3.32,175.04,174.96,8.8765]
[1753994450081,3.32,175.02,174.96,8.8765]
[1753994450686,3.32,174.99,174.97,3.16]
[1753994450878,111.92,174.99,174.97,3.16]
[1753994451080,5.7144,175.03,174.96,6.71685214]
[1753994451286,108.6,175.02,174.99,3.16]
[1753994451781,5.7146,175.03,174.99,5.7154]
[1753994451991,3.32,175.04,174.98,6.71685214]
[1753994452189,108.6,175.03,175.02,3.16]
[1753994452690,111.92,175.03,175.02,3.16]
[1753994452985,111.9,175.03,175.02,3.16]
[1753994453185,117.6144,175.03,175.02,3.16]
[1753994454484,5.7149,175.02,175.0,3.16]
[1753994454786,5.7149,175.02,174.99,3.16]
[1753994454984,3.32,175.01,174.99,3.16]
[1753994455180,108.58,175.0,174.99,3.16]
[1753994455384,111.9,175.0,174.99,3.16]
[1753994456693,108.58,175.0,174.99,3.16]
[1753994457491,108.58,175.0,174.99,8.8757]
[1753994458200,384.48,175.05,175.0,3.06]
[1753994458389,384.48,175.05,175.03,3.06]
[1753994458692,108.56,175.05,174.9,11.49050887]
[1753994458888,3.13,175.02,174.94,3.06]
[1753994459084,3.13,175.0,174.94,3.06]